[Event "EYCC Open U20 2021"]
[Site "Tornelo"]
[Date "2021.10.15"]
[Round "3.4"]
[White "Sokolovsky, Yahli"]
[Black "Ibrahimli, Murad"]
[Result "0-1"]
[ECO "B51"]
[WhiteElo "2422"]
[BlackElo "2435"]
[Annotator "NA"]
[PlyCount "94"]
[EventDate "2021.10.15"]
[EventType "swiss"]
[EventCountry "NET"]
[SourceTitle "playchess.com"]
[Source "ChessBase"]
[SourceQuality "1"]
[TimeControl "5400+30"]

1. e4 {[%emt 0:00:30]} c5 {[%emt 0:00:32]} 2. Nf3 {[%emt 0:00:04]} d6 {[%emt 0:00:04]} 3. Bb5+ {[%emt 0:00:04]} Nd7 {[%emt 0:00:06]} 4. O-O {[%emt 0:00:22]} Ngf6 {[%emt 0:00:11]} 5. Re1 {[%emt 0:00:05]} a6 {[%emt 0:01:05]} 6. Bf1 {[%emt 0:00:40]} b6 {[%emt 0:01:47]} 7. d4 {[%emt 0:10:13]} cxd4 {[%emt 0:00:05]} 8. Nxd4 {[%emt 0:01:04]} Bb7 {[%emt 0:00:06]} 9. f3 {[%emt 0:07:52]} e6 {[%emt 0:00:36]} 10. c4 {[%emt 0:00:47]} Be7 {[%emt 0:00:04]} 11. Be3 {[%emt 0:02:26]} O-O {[%emt 0:00:05]} 12. Nc3 {[%emt 0:01:33]} Rc8 {[%emt 0:00:14]} 13. Qd2 {[%emt 0:03:27]} Qc7 {[%emt 0:00:09]} 14. Rac1 {[%emt 0:03:35]} Qb8 {[%emt 0:00:13]} 15. Qf2 {[%emt 0:10:30]} Kh8 {[%emt 0:00:32]} 16. Kh1 {[%emt 0:05:49]} Rg8 {[%emt 0:00:04]} 17. Nb3 {[%emt 0:06:15]} Bd8 {[%emt 0:00:23]} 18. Rcd1 {[%emt 0:04:48]} Bc7 {[%emt 0:01:11]} 19. g4 {[%emt 0:01:03]} g5 {[%emt 0:02:19]} 20. Nc1 {[%emt 0:09:24]} h5 {[%emt 0:00:26]} 21. gxh5 {[%emt 0:07:15]} g4 {[%emt 0:01:41]} 22. Bd4 {[%emt 0:09:22]} Qa8 {[%emt 0:05:17]} 23. Bd3 {[%emt 0:05:34]} Rg7 {[%emt 0:05:13]} 24. N1e2 {[%emt 0:03:29]} Ne5 {[%emt 0:01:26]} 25. Ng3 {[%emt 0:04:51]} gxf3 {[%emt 0:00:34]} 26. Bxe5 {[%emt 0:00:17]} dxe5 {[%emt 0:00:04]} 27. Qxf3 {[%emt 0:00:17]} Ng4 {[%emt 0:00:25]} 28. h6 {[%emt 0:01:07]} Nxh6 {[%emt 0:00:24]} 29. Nh5 {[%emt 0:00:39]} Rg6 {[%emt 0:00:04]} 30. Rg1 {[%emt 0:01:25]} Rcg8 {[%emt 0:00:05]} 31. Ne2 {[%emt 0:00:38]} Qd8 {[%emt 0:00:28]} 32. Rg3 {[%emt 0:00:27]} Rxg3 {[%emt 0:00:21]} 33. Nexg3 {[%emt 0:00:36]} f5 {[%emt 0:00:04]} 34. Bc2 {[%emt 0:00:29]} Qe7 {[%emt 0:00:45]} 35. Ne2 {[%emt 0:00:26]} Qh4 {[%emt 0:00:17]} 36. Nhg3 {[%emt 0:00:35]} Ng4 {[%emt 0:00:13]} 37. Kg1 {[%emt 0:00:09]} Qxh2+ {[%emt 0:00:07]} 38. Kf1 {[%emt 0:00:03]} f4 {[%emt 0:00:01]} 39. Rd7 {[%emt 0:00:23]} Ne3+ {[%emt 0:03:01]} 40. Ke1 {[%emt 0:00:03]} Nxc2+ {[%emt 0:00:03]} 41. Kd2 {[%emt 0:00:30]} Nd4 {[%emt 0:00:06]} 42. Qh5+ {[%emt 0:00:36]} Qxh5 {[%emt 0:00:11]} 43. Nxh5 {[%emt 0:00:02]} Rd8 {[%emt 0:00:10]} 44. Rf7 {[%emt 0:00:51]} Bxe4 {[%emt 0:00:28]} 45. Nf6 {[%emt 0:00:16]} Nxe2+ {[%emt 0:00:04]} 46. Kxe2 {[%emt 0:00:06]} Bd3+ {[%emt 0:00:03]} 47. Kf3 {[%emt 0:00:12]} Bd6 {[%emt 0:00:04]} 0-1

[Event "EYCC Open U20 2021"]
[Site "Tornelo"]
[Date "2021.10.15"]
[Round "3.6"]
[White "Nordquelle, Daniel"]
[Black "Leisch, Lukas"]
[Result "0-1"]
[ECO "B06"]
[WhiteElo "2143"]
[BlackElo "2406"]
[Annotator "NA"]
[PlyCount "82"]
[EventDate "2021.10.15"]
[EventType "swiss"]
[EventCountry "NET"]
[SourceTitle "playchess.com"]
[Source "ChessBase"]
[SourceQuality "1"]
[TimeControl "5400+30"]

1. e4 {[%emt 0:00:30]} g6 {[%emt 0:00:35]} 2. d4 {[%emt 0:00:42]} Bg7 {[%emt 0:00:05]} 3. Nc3 {[%emt 0:00:10]} d6 {[%emt 0:00:03]} 4. Be3 {[%emt 0:02:50]} a6 {[%emt 0:00:11]} 5. Qd2 {[%emt 0:08:05]} b5 {[%emt 0:00:06]} 6. f3 {[%emt 0:00:05]} Nd7 {[%emt 0:01:16]} 7. h4 {[%emt 0:01:33]} h5 {[%emt 0:00:35]} 8. Nh3 {[%emt 0:02:59]} Bb7 {[%emt 0:01:08]} 9. O-O-O {[%emt 0:01:14]} Ngf6 {[%emt 0:03:05]} 10. Nf4 {[%emt 0:10:14]} Nb6 {[%emt 0:10:45]} 11. Kb1 {[%emt 0:26:05]} Rb8 {[%emt 0:17:40]} 12. Bd3 {[%emt 0:09:41]} Nfd7 {[%emt 0:04:25]} 13. Qf2 {[%emt 0:04:51]} Qc8 {[%emt 0:04:35]} 14. g4 {[%emt 0:05:59]} c5 {[%emt 0:01:12]} 15. gxh5 {[%emt 0:03:16]} gxh5 {[%emt 0:01:08]} 16. Rhg1 {[%emt 0:03:36]} Bf6 {[%emt 0:03:09]} 17. Ncd5 {[%emt 0:03:05]} Bxd5 {[%emt 0:04:04]} 18. exd5 {[%emt 0:01:43]} c4 {[%emt 0:01:46]} 19. Bf5 {[%emt 0:00:14]} Qb7 {[%emt 0:00:41]} 20. Rg2 {[%emt 0:04:39]} Kd8 {[%emt 0:06:11]} 21. Rdg1 {[%emt 0:01:27]} Kc7 {[%emt 0:00:05]} 22. Be6 {[%emt 0:01:04]} Rbf8 {[%emt 0:00:31]} 23. Bxf7 {[%emt 0:00:31]} Rxf7 {[%emt 0:00:09]} 24. Ne6+ {[%emt 0:00:04]} Kb8 {[%emt 0:00:20]} 25. Rg8+ {[%emt 0:00:06]} Rxg8 {[%emt 0:01:23]} 26. Rxg8+ {[%emt 0:00:04]} Ka7 {[%emt 0:00:19]} 27. Nd8 {[%emt 0:00:35]} Qxd5 {[%emt 0:00:10]} 28. Nxf7 {[%emt 0:00:08]} Qxf7 {[%emt 0:00:07]} 29. Rg1 {[%emt 0:02:01]} Qd5 {[%emt 0:02:43]} 30. c3 {[%emt 0:01:08]} Qf5+ {[%emt 0:00:49]} 31. Kc1 {[%emt 0:00:39]} Nd5 {[%emt 0:00:29]} 32. Bg5 {[%emt 0:00:28]} Nf4 {[%emt 0:05:08]} 33. Qe3 {[%emt 0:02:15]} Nd3+ {[%emt 0:00:11]} 34. Kb1 {[%emt 0:00:03]} d5 {[%emt 0:01:45]} 35. Ka1 {[%emt 0:00:43]} b4 {[%emt 0:09:20]} 36. Bxf6 {[%emt 0:02:54]} Qxf6 {[%emt 0:00:07]} 37. cxb4 {[%emt 0:01:27]} Nxb4 {[%emt 0:01:04]} 38. Qc3 {[%emt 0:01:20]} Qd6 {[%emt 0:02:03]} 39. b3 {[%emt 0:00:25]} Qh2 {[%emt 0:02:08]} 40. Qxb4 {[%emt 0:00:20]} Qxg1+ {[%emt 0:00:04]} 41. Kb2 {[%emt 0:00:11]} Qxd4+ {[%emt 0:00:18]} 0-1

[Event "EYCC Open U20 2021"]
[Site "Tornelo"]
[Date "2021.10.15"]
[Round "3.8"]
[White "Stoleriu, George"]
[Black "Kirilmaz, Emre"]
[Result "1-0"]
[ECO "B03"]
[WhiteElo "2373"]
[BlackElo "2147"]
[Annotator "NA"]
[PlyCount "77"]
[EventDate "2021.10.15"]
[EventType "swiss"]
[EventCountry "NET"]
[SourceTitle "playchess.com"]
[Source "ChessBase"]
[SourceQuality "1"]
[TimeControl "5400+30"]

1. e4 {[%emt 0:00:30]} Nf6 {[%emt 0:00:36]} 2. e5 {[%emt 0:00:07]} Nd5 {[%emt 0:00:14]} 3. c4 {[%emt 0:00:07]} Nb6 {[%emt 0:00:05]} 4. d4 {[%emt 0:00:06]} d6 {[%emt 0:00:06]} 5. f4 {[%emt 0:00:05]} g6 {[%emt 0:00:07]} 6. Nc3 {[%emt 0:00:38]} Bg7 {[%emt 0:00:16]} 7. Be3 {[%emt 0:00:09]} Be6 {[%emt 0:00:08]} 8. Nf3 {[%emt 0:00:33]} O-O {[%emt 0:00:16]} 9. Qb3 {[%emt 0:00:23]} dxe5 {[%emt 0:08:10]} 10. fxe5 {[%emt 0:02:56]} Bg4 {[%emt 0:17:28]} 11. Be2 {[%emt 0:13:05]} Nc6 {[%emt 0:04:01]} 12. Rd1 {[%emt 0:02:50]} Bxf3 {[%emt 0:12:45]} 13. gxf3 {[%emt 0:00:12]} e6 {[%emt 0:01:06]} 14. O-O {[%emt 0:12:09]} Ne7 {[%emt 0:25:38]} 15. Ne4 {[%emt 0:01:25]} h6 {[%emt 0:01:30]} 16. Ng3 {[%emt 0:01:27]} Nf5 {[%emt 0:03:24]} 17. Nxf5 {[%emt 0:00:58]} gxf5 {[%emt 0:00:10]} 18. Kh1 {[%emt 0:01:32]} Kh7 {[%emt 0:00:12]} 19. Rg1 {[%emt 0:01:35]} Rg8 {[%emt 0:02:20]} 20. f4 {[%emt 0:06:18]} Qh4 {[%emt 0:01:33]} 21. Bf3 {[%emt 0:02:24]} c6 {[%emt 0:02:01]} 22. a4 {[%emt 0:13:04]} Rab8 {[%emt 0:01:28]} 23. a5 {[%emt 0:00:42]} Nd7 {[%emt 0:00:06]} 24. Qc2 {[%emt 0:06:03]} Nf8 {[%emt 0:03:43]} 25. d5 {[%emt 0:05:47]} Ng6 {[%emt 0:00:31]} 26. dxe6 {[%emt 0:03:04]} fxe6 {[%emt 0:00:16]} 27. Rd7 {[%emt 0:00:28]} Nxf4 {[%emt 0:02:05]} 28. Bf2 {[%emt 0:00:31]} Qh3 {[%emt 0:07:37]} 29. Bg4 {[%emt 0:00:07]} Rbd8 {[%emt 0:01:29]} 30. Rxd8 {[%emt 0:00:44]} Rxd8 {[%emt 0:00:13]} 31. Bxh3 {[%emt 0:00:12]} Nxh3 {[%emt 0:00:08]} 32. Re1 {[%emt 0:01:05]} Bf8 {[%emt 0:01:02]} 33. Be3 {[%emt 0:01:05]} Bb4 {[%emt 0:00:40]} 34. Rd1 {[%emt 0:00:20]} Rg8 {[%emt 0:00:06]} 35. Qe2 {[%emt 0:01:03]} Rg4 {[%emt 0:01:28]} 36. Qf3 {[%emt 0:00:18]} Ng5 {[%emt 0:00:19]} 37. Bxg5 {[%emt 0:00:07]} hxg5 {[%emt 0:00:09]} 38. Rg1 {[%emt 0:00:12]} Rf4 {[%emt 0:00:25]} 39. Qh5+ {[%emt 0:00:05]} 1-0

[Event "EYCC Open U20 2021"]
[Site "Tornelo"]
[Date "2021.10.15"]
[Round "3.9"]
[White "Pliukha, Myhajlo"]
[Black "Crevatin, Leo"]
[Result "1-0"]
[ECO "B30"]
[WhiteElo "2217"]
[BlackElo "2275"]
[Annotator "NA"]
[PlyCount "81"]
[EventDate "2021.10.15"]
[EventType "swiss"]
[EventCountry "NET"]
[SourceTitle "playchess.com"]
[Source "ChessBase"]
[SourceQuality "1"]
[TimeControl "5400+30"]

1. e4 {[%emt 0:00:30]} c5 {[%emt 0:00:43]} 2. Nc3 {[%emt 0:00:15]} Nc6 {[%emt 0:00:40]} 3. Nf3 {[%emt 0:00:06]} e5 {[%emt 0:01:15]} 4. Bc4 {[%emt 0:01:23]} Be7 {[%emt 0:00:08]} 5. Nd5 {[%emt 0:02:20]} Nf6 {[%emt 0:02:29]} 6. d3 {[%emt 0:00:55]} d6 {[%emt 0:03:08]} 7. c3 {[%emt 0:02:15]} O-O {[%emt 0:04:12]} 8. O-O {[%emt 0:06:22]} Nxd5 {[%emt 0:05:44]} 9. Bxd5 {[%emt 0:00:13]} Bg4 {[%emt 0:02:57]} 10. h3 {[%emt 0:00:40]} Bh5 {[%emt 0:02:00]} 11. g4 {[%emt 0:01:26]} Bg6 {[%emt 0:00:26]} 12. Ne1 {[%emt 0:04:02]} Bg5 {[%emt 0:19:16]} 13. Ng2 {[%emt 0:06:37]} Bxc1 {[%emt 0:03:46]} 14. Rxc1 {[%emt 0:00:05]} Ne7 {[%emt 0:01:57]} 15. Qb3 {[%emt 0:08:45]} Kh8 {[%emt 0:04:19]} 16. f4 {[%emt 0:07:03]} f6 {[%emt 0:13:32]} 17. Be6 {[%emt 0:13:09]} Rb8 {[%emt 0:02:37]} 18. Rcd1 {[%emt 0:03:18]} b5 {[%emt 0:02:38]} 19. Qc2 {[%emt 0:02:22]} Qb6 {[%emt 0:02:13]} 20. Kh2 {[%emt 0:02:52]} b4 {[%emt 0:03:02]} 21. h4 {[%emt 0:04:30]} Be8 {[%emt 0:04:35]} 22. h5 {[%emt 0:07:37]} bxc3 {[%emt 0:02:56]} 23. bxc3 {[%emt 0:00:05]} Bc6 {[%emt 0:03:35]} 24. Rb1 {[%emt 0:03:15]} Qc7 {[%emt 0:00:58]} 25. Rxb8 {[%emt 0:00:37]} Rxb8 {[%emt 0:00:16]} 26. g5 {[%emt 0:00:11]} d5 {[%emt 0:04:36]} 27. h6 {[%emt 0:02:24]} Ng6 {[%emt 0:05:03]} 28. f5 {[%emt 0:09:49]} Nf4 {[%emt 0:00:57]} 29. Nxf4 {[%emt 0:01:00]} exf4 {[%emt 0:00:14]} 30. exd5 {[%emt 0:00:15]} f3+ {[%emt 0:00:51]} 31. Kh3 {[%emt 0:00:53]} fxg5 {[%emt 0:03:19]} 32. Rxf3 {[%emt 0:02:08]} Be8 {[%emt 0:00:33]} 33. f6 {[%emt 0:03:17]} gxf6 {[%emt 0:01:00]} 34. Rxf6 {[%emt 0:00:05]} Qe7 {[%emt 0:00:51]} 35. Qf2 {[%emt 0:00:15]} Bd7 {[%emt 0:00:40]} 36. Qf5 {[%emt 0:00:28]} g4+ {[%emt 0:00:29]} 37. Kg2 {[%emt 0:04:44]} Rb2+ {[%emt 0:00:20]} 38. Kf1 {[%emt 0:00:07]} Rb1+ {[%emt 0:00:25]} 39. Ke2 {[%emt 0:00:06]} Rb2+ {[%emt 0:00:17]} 40. Ke3 {[%emt 0:00:31]} Rb8 {[%emt 0:01:00]} 41. Rf7 {[%emt 0:00:30]} 1-0

[Event "EYCC Open U20 2021"]
[Site "Tornelo"]
[Date "2021.10.15"]
[Round "3.10"]
[White "Kalogridis, Antonios"]
[Black "Bruaset, Eivind"]
[Result "1/2-1/2"]
[ECO "E20"]
[WhiteElo "2275"]
[BlackElo "2200"]
[Annotator "NA"]
[PlyCount "48"]
[EventDate "2021.10.15"]
[EventType "swiss"]
[EventCountry "NET"]
[SourceTitle "playchess.com"]
[Source "ChessBase"]
[SourceQuality "1"]
[TimeControl "5400+30"]

1. d4 {[%emt 0:00:30]} Nf6 {[%emt 0:00:47]} 2. c4 {[%emt 0:00:08]} e6 {[%emt 0:00:13]} 3. Nc3 {[%emt 0:00:06]} Bb4 {[%emt 0:00:08]} 4. f3 {[%emt 0:00:02]} c5 {[%emt 0:00:27]} 5. d5 {[%emt 0:00:04]} b5 {[%emt 0:00:29]} 6. e4 {[%emt 0:00:04]} O-O {[%emt 0:00:33]} 7. e5 {[%emt 0:00:10]} exd5 {[%emt 0:00:18]} 8. cxd5 {[%emt 0:01:11]} Re8 {[%emt 0:06:49]} 9. f4 {[%emt 0:08:03]} d6 {[%emt 0:05:09]} 10. Bxb5 {[%emt 0:09:39]} Bd7 {[%emt 0:02:11]} 11. Bc4 {[%emt 0:05:11]} Ne4 {[%emt 0:13:34]} 12. Nf3 {[%emt 0:14:59]} dxe5 {[%emt 0:06:18]} 13. fxe5 {[%emt 0:04:38]} Nxc3 {[%emt 0:08:41]} 14. bxc3 {[%emt 0:00:07]} Bxc3+ {[%emt 0:00:41]} 15. Bd2 {[%emt 0:00:12]} Bxe5 {[%emt 0:06:14]} 16. O-O {[%emt 0:01:28]} Bg4 {[%emt 0:06:37]} 17. Rb1 {[%emt 0:04:13]} Qd6 {[%emt 0:06:39]} 18. Nxe5 {[%emt 0:07:52]} Bxd1 {[%emt 0:08:49]} 19. Nxf7 {[%emt 0:00:07]} Qg6 {[%emt 0:00:37]} 20. d6 {[%emt 0:03:42]} Qxb1 {[%emt 0:01:43]} 21. Nh6+ {[%emt 0:00:30]} Kh8 {[%emt 0:00:11]} 22. Nf7+ {[%emt 0:00:57]} Kg8 {[%emt 0:00:05]} 23. Ne5+ {[%emt 0:01:49]} Kh8 {[%emt 0:00:41]} 24. Nf7+ {[%emt 0:00:09]} Kg8 {[%emt 0:00:04]} 1/2-1/2

[Event "EYCC Open U20 2021"]
[Site "Tornelo"]
[Date "2021.10.15"]
[Round "3.11"]
[White "Tryggestad, Andreas Garberg"]
[Black "Levin, Guy"]
[Result "1-0"]
[ECO "D24"]
[WhiteElo "2268"]
[BlackElo "2359"]
[Annotator "NA"]
[PlyCount "133"]
[EventDate "2021.10.15"]
[EventType "swiss"]
[EventCountry "NET"]
[SourceTitle "playchess.com"]
[Source "ChessBase"]
[SourceQuality "1"]
[TimeControl "5400+30"]

1. d4 {[%emt 0:00:30]} d5 {[%emt 0:00:36]} 2. c4 {[%emt 0:00:05]} e6 {[%emt 0:00:03]} 3. Nf3 {[%emt 0:00:04]} Nf6 {[%emt 0:00:06]} 4. Nc3 {[%emt 0:00:09]} dxc4 {[%emt 0:00:03]} 5. e4 {[%emt 0:00:05]} b5 {[%emt 0:00:04]} 6. e5 {[%emt 0:01:03]} Nd5 {[%emt 0:00:04]} 7. Nxb5 {[%emt 0:00:12]} Nb6 {[%emt 0:00:05]} 8. Be2 {[%emt 0:00:11]} Nc6 {[%emt 0:00:09]} 9. O-O {[%emt 0:00:07]} Be7 {[%emt 0:00:10]} 10. Be3 {[%emt 0:00:19]} Bb7 {[%emt 0:00:29]} 11. Qb1 {[%emt 0:01:42]} g5 {[%emt 0:02:12]} 12. Rd1 {[%emt 0:07:42]} Qd7 {[%emt 0:10:42]} 13. d5 {[%emt 0:05:28]} Nxd5 {[%emt 0:14:32]} 14. Bxc4 {[%emt 0:01:03]} Na5 {[%emt 0:01:01]} 15. Bxd5 {[%emt 0:03:32]} Bxd5 {[%emt 0:00:25]} 16. Nc3 {[%emt 0:00:10]} g4 {[%emt 0:05:47]} 17. Nxd5 {[%emt 0:01:03]} exd5 {[%emt 0:00:11]} 18. Nd4 {[%emt 0:14:53]} Nc4 {[%emt 0:02:15]} 19. Bf4 {[%emt 0:00:21]} O-O {[%emt 0:01:06]} 20. Qf5 {[%emt 0:03:11]} Rad8 {[%emt 0:02:34]} 21. Bh6 {[%emt 0:04:53]} Qxf5 {[%emt 0:02:15]} 22. Nxf5 {[%emt 0:00:05]} Rfe8 {[%emt 0:00:03]} 23. Nxe7+ {[%emt 0:00:07]} Rxe7 {[%emt 0:00:03]} 24. Bg5 {[%emt 0:00:02]} Red7 {[%emt 0:00:11]} 25. Bxd8 {[%emt 0:00:06]} Rxd8 {[%emt 0:00:02]} 26. Rac1 {[%emt 0:01:51]} Nxe5 {[%emt 0:01:53]} 27. Rxc7 {[%emt 0:00:08]} d4 {[%emt 0:00:12]} 28. Kf1 {[%emt 0:22:46]} a6 {[%emt 0:00:40]} 29. Ke2 {[%emt 0:01:31]} Rd6 {[%emt 0:02:34]} 30. Rc5 {[%emt 0:11:47]} f6 {[%emt 0:01:56]} 31. Rc7 {[%emt 0:01:20]} d3+ {[%emt 0:00:07]} 32. Kd2 {[%emt 0:02:30]} Rd4 {[%emt 0:00:57]} 33. Ke3 {[%emt 0:01:17]} Rb4 {[%emt 0:01:27]} 34. b3 {[%emt 0:00:16]} f5 {[%emt 0:00:23]} 35. Re1 {[%emt 0:02:04]} Rb5 {[%emt 0:01:08]} 36. Kd4 {[%emt 0:02:40]} Kf8 {[%emt 0:00:16]} 37. a4 {[%emt 0:06:35]} Rb8 {[%emt 0:00:16]} 38. Kxe5 {[%emt 0:01:39]} Re8+ {[%emt 0:00:06]} 39. Kf6 {[%emt 0:00:33]} Rxe1 {[%emt 0:00:04]} 40. Rd7 {[%emt 0:00:07]} Ke8 {[%emt 0:00:29]} 41. Rxd3 {[%emt 0:00:06]} Rh1 {[%emt 0:00:06]} 42. h3 {[%emt 0:04:50]} Rf1 {[%emt 0:00:05]} 43. Rd2 {[%emt 0:01:32]} Rb1 {[%emt 0:00:04]} 44. Re2+ {[%emt 0:00:44]} Kd8 {[%emt 0:00:16]} 45. h4 {[%emt 0:00:12]} Rxb3 {[%emt 0:01:00]} 46. Kxf5 {[%emt 0:00:04]} g3 {[%emt 0:00:01]} 47. f4 {[%emt 0:01:10]} Ra3 {[%emt 0:00:19]} 48. Kg4 {[%emt 0:00:17]} Rxa4 {[%emt 0:00:42]} 49. Kxg3 {[%emt 0:00:03]} a5 {[%emt 0:00:10]} 50. Kg4 {[%emt 0:00:03]} Rb4 {[%emt 0:00:04]} 51. Kg5 {[%emt 0:00:09]} Rb6 {[%emt 0:00:03]} 52. f5 {[%emt 0:00:29]} h6+ {[%emt 0:00:02]} 53. Kh5 {[%emt 0:00:24]} a4 {[%emt 0:00:09]} 54. g4 {[%emt 0:00:22]} a3 {[%emt 0:00:02]} 55. Ra2 {[%emt 0:01:17]} Ra6 {[%emt 0:00:04]} 56. f6 {[%emt 0:01:49]} Ke8 {[%emt 0:00:49]} 57. Kg6 {[%emt 0:00:34]} Kf8 {[%emt 0:00:03]} 58. g5 {[%emt 0:00:45]} Ra4 {[%emt 0:01:02]} 59. Rc2 {[%emt 0:00:24]} Ra8 {[%emt 0:00:20]} 60. gxh6 {[%emt 0:00:35]} Kg8 {[%emt 0:00:57]} 61. Ra2 {[%emt 0:00:29]} Ra6 {[%emt 0:00:26]} 62. Re2 {[%emt 0:00:22]} Ra8 {[%emt 0:00:14]} 63. f7+ {[%emt 0:00:08]} Kf8 {[%emt 0:00:03]} 64. Re8+ {[%emt 0:00:02]} Rxe8 {[%emt 0:00:02]} 65. fxe8=Q+ {[%emt 0:00:03]} Kxe8 {[%emt 0:00:01]} 66. h7 {[%emt 0:00:01]} a2 {[%emt 0:00:02]} 67. h8=Q+ {[%emt 0:00:04]} 1-0

[Event "EYCC Open U20 2021"]
[Site "Tornelo"]
[Date "2021.10.15"]
[Round "4.8"]
[White "Kirilmaz, Emre"]
[Black "Kalogridis, Antonios"]
[Result "1-0"]
[ECO "D03"]
[WhiteElo "2147"]
[BlackElo "2275"]
[Annotator "ChessBase"]
[PlyCount "213"]
[EventDate "2021.10.15"]
[EventType "swiss"]
[EventCountry "NET"]
[SourceTitle "playchess.com"]
[Source "ChessBase"]
[SourceQuality "1"]
[TimeControl "5400+30"]

1. d4 {[%emt 0:00:30]} Nf6 {[%emt 0:00:34]} 2. c3 {[%emt 0:00:44]} g6 {[%emt 0:00:04]} 3. Bg5 {[%emt 0:00:06]} Bg7 {[%emt 0:00:04]} 4. Nd2 {[%emt 0:00:08]} d5 {[%emt 0:00:03]} 5. e3 {[%emt 0:01:08]} O-O {[%emt 0:00:06]} 6. Bd3 {[%emt 0:00:22]} c5 {[%emt 0:00:05]} 7. Ngf3 {[%emt 0:00:19]} Qb6 {[%emt 0:00:11]} 8. Rb1 {[%emt 0:00:55]} Nbd7 {[%emt 0:00:05]} 9. O-O {[%emt 0:01:10]} Re8 {[%emt 0:00:06]} 10. Qa4 {[%emt 0:04:10]} Kf8 {[%emt 0:20:34]} 11. Qa3 {[%emt 0:15:35]} Kg8 {[%emt 0:08:27]} 12. c4 {[%emt 0:05:55]} cxd4 {[%emt 0:06:10]} 13. exd4 {[%emt 0:00:24]} e5 {[%emt 0:01:25]} 14. dxe5 {[%emt 0:12:52]} Nxe5 {[%emt 0:00:25]} 15. Nxe5 {[%emt 0:05:20]} Rxe5 {[%emt 0:02:53]} 16. c5 {[%emt 0:03:30]} Qd8 {[%emt 0:04:24]} 17. Nf3 {[%emt 0:03:16]} Re8 {[%emt 0:00:19]} 18. Rfe1 {[%emt 0:02:23]} Bd7 {[%emt 0:07:47]} 19. Rxe8+ {[%emt 0:14:13]} Qxe8 {[%emt 0:00:30]} 20. Re1 {[%emt 0:06:44]} Ne4 {[%emt 0:03:17]} 21. b4 {[%emt 0:02:08]} a5 {[%emt 0:09:33]} 22. bxa5 {[%emt 0:01:59]} Bc3 {[%emt 0:07:41]} 23. Rxe4 {[%emt 0:01:45]} dxe4 {[%emt 0:00:22]} 24. Qxc3 {[%emt 0:00:08]} exd3 {[%emt 0:00:25]} 25. Bh6 {[%emt 0:00:13]} f6 {[%emt 0:00:07]} 26. Qxf6 {[%emt 0:00:13]} Qf7 {[%emt 0:00:12]} 27. Qd4 {[%emt 0:09:46]} Bf5 {[%emt 0:03:52]} 28. g4 {[%emt 0:02:17]} Qd7 {[%emt 0:05:58]} 29. gxf5 {[%emt 0:00:23]} Qxd4 {[%emt 0:00:08]} 30. Nxd4 {[%emt 0:00:07]} Rxa5 {[%emt 0:00:11]} 31. Nb3 {[%emt 0:01:01]} Rxa2 {[%emt 0:00:08]} 32. fxg6 {[%emt 0:00:09]} Rb2 {[%emt 0:00:45]} 33. Nd2 {[%emt 0:00:20]} hxg6 {[%emt 0:00:06]} 34. Kg2 {[%emt 0:05:07]} Kf7 {[%emt 0:00:26]} 35. Kf3 {[%emt 0:00:48]} Ke6 {[%emt 0:00:26]} 36. Ke4 {[%emt 0:00:16]} Rb4+ {[%emt 0:00:12]} 37. Kxd3 {[%emt 0:00:07]} Rh4 {[%emt 0:00:12]} 38. Be3 {[%emt 0:00:27]} Rxh2 {[%emt 0:00:05]} 39. Kc4 {[%emt 0:00:25]} Kd7 {[%emt 0:00:11]} 40. Kb5 {[%emt 0:00:11]} Rh1 {[%emt 0:00:29]} 41. Nf3 {[%emt 0:00:32]} Rb1+ {[%emt 0:00:14]} 42. Kc4 {[%emt 0:00:27]} Ke6 {[%emt 0:00:05]} 43. Nd4+ {[%emt 0:00:57]} Ke5 {[%emt 0:00:17]} 44. Nb5 {[%emt 0:00:37]} Ke6 {[%emt 0:00:18]} 45. Na3 {[%emt 0:00:47]} Ra1 {[%emt 0:00:21]} 46. Nc2 {[%emt 0:00:12]} Rb1 {[%emt 0:00:05]} 47. Nb4 {[%emt 0:00:10]} Rb2 {[%emt 0:00:37]} 48. Nd3 {[%emt 0:00:28]} Rb1 {[%emt 0:00:06]} 49. Nf4+ {[%emt 0:00:47]} Kf5 {[%emt 0:00:08]} 50. Ne2 {[%emt 0:00:41]} Ke6 {[%emt 0:00:24]} 51. Bd4 {[%emt 0:00:23]} Re1 {[%emt 0:00:40]} 52. Nc3 {[%emt 0:00:28]} g5 {[%emt 0:00:23]} 53. Kb5 {[%emt 0:00:20]} Kd7 {[%emt 0:00:15]} 54. Kb6 {[%emt 0:00:53]} Kc8 {[%emt 0:01:24]} 55. Be3 {[%emt 0:00:42]} g4 {[%emt 0:00:12]} 56. Ne4 {[%emt 0:00:24]} Rb1+ {[%emt 0:00:46]} 57. Ka5 {[%emt 0:00:04]} Kc7 {[%emt 0:00:05]} 58. Nf6 {[%emt 0:00:21]} Rg1 {[%emt 0:02:10]} 59. Kb5 {[%emt 0:00:10]} Kd8 {[%emt 0:00:43]} 60. Bf4 {[%emt 0:00:20]} Rb1+ {[%emt 0:03:31]} 61. Kc4 {[%emt 0:00:09]} b5+ {[%emt 0:00:07]} 62. cxb6 {[%emt 0:02:19]} Rxb6 {[%emt 0:00:09]} 63. Nxg4 {[%emt 0:00:06]} Rb2 {[%emt 0:00:16]} 64. Kd5 {[%emt 0:00:25]} Ke7 {[%emt 0:00:05]} 65. Be5 {[%emt 0:00:31]} Rd2+ {[%emt 0:00:09]} 66. Bd4 {[%emt 0:00:13]} Rd1 {[%emt 0:00:08]} 67. f4 {[%emt 0:00:20]} Kf7 {[%emt 0:00:13]} 68. Ke5 {[%emt 0:00:23]} Rb1 {[%emt 0:00:17]} 69. Kf5 {[%emt 0:00:13]} Rf1 {[%emt 0:00:08]} 70. Nh6+ {[%emt 0:00:23]} Kf8 {[%emt 0:00:22]} 71. Be5 {[%emt 0:00:08]} Ke7 {[%emt 0:00:09]} 72. Ng4 {[%emt 0:00:49]} Kd7 {[%emt 0:00:16]} 73. Nf6+ {[%emt 0:00:13]} Kc6 {[%emt 0:00:05]} 74. Ke6 {[%emt 0:00:06]} Rxf4 {[%emt 0:00:18]} 75. Bxf4 {[%emt 0:00:06]} Kb7 {[%emt 0:00:06]} 76. Kd5 {[%emt 0:00:14]} Ka8 {[%emt 0:00:04]} 77. Kc6 {[%emt 0:00:12]} Ka7 {[%emt 0:00:04]} 78. Nd5 {[%emt 0:00:17]} Ka8 {[%emt 0:00:07]} 79. Nb6+ {[%emt 0:00:11]} Ka7 {[%emt 0:00:05]} 80. Bc7 {[%emt 0:00:06]} Ka6 {[%emt 0:00:05]} 81. Bb8 {[%emt 0:00:07]} Ka5 {[%emt 0:00:05]} 82. Nd5 {[%emt 0:00:07]} Ka4 {[%emt 0:00:25]} 83. Kc5 {[%emt 0:00:08]} Kb3 {[%emt 0:00:08]} 84. Nb4 {[%emt 0:00:05]} Kc3 {[%emt 0:00:04]} 85. Bf4 {[%emt 0:00:07]} Kb3 {[%emt 0:00:16]} 86. Be5 {[%emt 0:00:11]} Ka4 {[%emt 0:00:08]} 87. Kc4 {[%emt 0:00:09]} Ka5 {[%emt 0:00:06]} 88. Bc7+ {[%emt 0:00:05]} Ka4 {[%emt 0:00:04]} 89. Nd5 {[%emt 0:00:30]} Ka3 {[%emt 0:00:05]} 90. Nc3 {[%emt 0:00:08]} Kb2 {[%emt 0:00:05]} 91. Bd6 {[%emt 0:00:25]} Kc1 {[%emt 0:00:13]} 92. Bf4+ {[%emt 0:02:24]} Kc2 {[%emt 0:00:19]} 93. Be3 {[%emt 0:00:16]} Kb2 {[%emt 0:00:08]} 94. Kd3 {[%emt 0:02:46]} Ka3 {[%emt 0:00:15]} 95. Bc5+ {[%emt 0:00:15]} Kb3 {[%emt 0:00:09]} 96. Bd6 {[%emt 0:00:09]} Kb2 {[%emt 0:00:07]} 97. Nd5 {[%emt 0:00:30]} Kc1 {[%emt 0:01:23]} 98. Bb4 {[%emt 0:00:26]} Kb2 {[%emt 0:00:13]} 99. Bc3+ {[%emt 0:01:08]} Kb3 {[%emt 0:00:08]} 100. Nb6 {[%emt 0:00:08]} Ka3 {[%emt 0:00:12]} 101. Kc2 {[%emt 0:00:06]} Ka2 {[%emt 0:00:12]} 102. Bb4 {[%emt 0:00:05]} Ka1 {[%emt 0:00:08]} 103. Nd5 {[%emt 0:00:11]} Ka2 {[%emt 0:00:03]} 104. Nf4 {[%emt 0:00:08]} Ka1 {[%emt 0:00:05]} 105. Nd3 {[%emt 0:00:05]} Ka2 {[%emt 0:00:04]} 106. Nc1+ {[%emt 0:00:05]} Ka1 {[%emt 0:00:05]} 107. Bc3# {[%emt 0:00:05]} 1-0